fUSD/lending_fUSD_20250521
["ID","MTS","AMOUNT","RATE_DAILY","PERIOD"]
[361815374,1747823525883,-1388.95,0.00034246,5]
[361815375,1747823525893,-1642.25,0.00034246,5]
[361815376,1747823525903,-15894.82,0.00034246,5]
[361815377,1747823525912,-7928.56,0.00034246,5]
[361815378,1747823525922,-3648.84,0.00034246,5]
[361815379,1747823525932,-535.54,0.00034246,5]
[361815380,1747823525941,-420.0,0.00034246,5]
[361815381,1747823525951,-18415.06,0.00034246,5]
[361815382,1747823525962,-420.0,0.00034246,5]
[361815383,1747823525971,-2111.71,0.00034246,5]
[361815384,1747823525981,-584.64,0.00034246,5]
[361815385,1747823525991,-420.0,0.00034246,5]
[361815386,1747823526004,-1096.3,0.00034246,5]
[361815387,1747823526014,-2534.37,0.00034246,5]
[361815388,1747823526024,-420.0,0.00034246,5]
[361815389,1747823526033,-2727.38,0.00034246,5]
[361815390,1747823526044,-481.82,0.00034246,5]
[361815391,1747823526053,-4064.18,0.00034246,5]
[361815392,1747823526064,-1605.11,0.00034246,5]
[361815393,1747823526074,-2791.01,0.00034246,5]
[361815394,1747823526083,-420.0,0.00034246,5]
[361815395,1747823526093,-583.63,0.00034246,5]
[361815396,1747823526103,-3277.38,0.00034246,5]
[361815397,1747823526112,-1946.19,0.00034246,5]
[361815398,1747823526122,-420.0,0.00034246,5]
[361815399,1747823526132,-4162.95,0.00034246,5]
[361815400,1747823526142,-486.64,0.00034246,5]
[361815401,1747823526151,-1793.09,0.00034246,5]
[361815402,1747823526161,-2365.3,0.00034246,5]
[361815403,1747823526171,-5030.39,0.00034246,5]
[361815404,1747823526181,-853.5,0.00034246,5]
[361815405,1747823526191,-420.0,0.00034246,5]
[361815406,1747823526201,-420.0,0.00034246,5]
[361815407,1747823526211,-1065.78,0.00034246,5]
[361815408,1747823526222,-5351.26,0.00034246,5]
[361815409,1747823526232,-8618.58,0.00034246,5]
[361815410,1747823526242,-420.0,0.00034246,5]
[361815411,1747823526251,-3564.21,0.00034246,5]
[361815412,1747823526261,-1488.03,0.00034246,5]
[361815413,1747823526271,-4366.01,0.00034246,5]
[361815414,1747823526281,-5387.66,0.00034246,5]
[361815415,1747823526290,-1284.33,0.00034246,5]
[361815416,1747823526299,-420.0,0.00034246,5]
[361815417,1747823526310,-420.0,0.00034246,5]
[361815418,1747823526319,-643.95,0.00034246,5]
[361815419,1747823526330,-11304.41,0.00034246,5]
[361815420,1747823526340,-751.7,0.00034246,5]
[361815421,1747823526350,-873.4,0.00034246,5]
[361815422,1747823526362,-420.0,0.00034246,5]
[361815423,1747823526375,-1096.95,0.00034246,5]
[361815424,1747823526385,-781.82,0.00034246,5]
[361815425,1747823526395,-420.0,0.00034246,5]
[361815426,1747823526407,-441.74,0.00034246,5]
[361815427,1747823526417,-871.43,0.00034246,5]
[361815428,1747823526427,-420.0,0.00034246,5]
[361815429,1747823526436,-5264.38,0.00034246,5]
[361815430,1747823526447,-160.98234628,0.00034246,5]
[361815431,1747823526456,-420.0,0.00034246,5]
[361815432,1747823526466,-778.01,0.00034246,5]
[361815433,1747823526475,-3424.15,0.00034246,5]
[361815434,1747823526484,-6336.25,0.00034246,5]
[361815435,1747823526494,-420.0,0.00034246,5]
[361815436,1747823526504,-575.11,0.00034246,5]
[361815437,1747823526514,-2227.33,0.00034246,5]
[361815438,1747823526524,-469.12,0.00034246,5]
[361815439,1747823526533,-2778.38,0.00034246,5]
[361815440,1747823526543,-2282.35,0.00034246,5]
[361815441,1747823526553,-420.0,0.00034246,5]
[361815442,1747823526563,-420.0,0.00034246,5]
[361815443,1747823526573,-420.0,0.00034246,5]
[361815444,1747823526583,-2508.06,0.00034246,5]
[361815445,1747823526596,-420.0,0.00034246,5]
[361815446,1747823526606,-477.54,0.00034246,5]
[361815447,1747823526616,-420.0,0.00034246,5]
[361815448,1747823526626,-45711.39,0.00034246,5]
[361815449,1747823526636,-1438.01,0.00034246,5]
[361815450,1747823526646,-420.0,0.00034246,5]
[361815451,1747823526656,-420.0,0.00034246,5]
[361815452,1747823526666,-492.73,0.00034246,5]
[361815453,1747823526676,-2994.99,0.00034246,5]
[361815454,1747823526686,-2847.74,0.00034246,5]
[361815455,1747823526695,-845.16,0.00034246,5]
[361815456,1747823526706,-908.75,0.00034246,5]
[361815457,1747823526716,-7033.02,0.00034246,5]
[361815458,1747823526726,-420.0,0.00034246,5]
[361815459,1747823526736,-20631.06,0.00034246,5]
[361815460,1747823526746,-1653.01,0.00034246,5]
[361815461,1747823526757,-420.0,0.00034246,5]
[361815462,1747823526768,-420.0,0.00034246,5]
[361815463,1747823526778,-440.6,0.00034246,5]
[361815464,1747823526788,-480.69,0.00034246,5]
[361815465,1747823526798,-420.0,0.00034246,5]
[361815466,1747823526809,-420.0,0.00034246,5]
[361815467,1747823526819,-1811.64,0.00034246,5]
[361815468,1747823526828,-1675.59,0.00034246,5]
[361815469,1747823526839,-1341.01,0.00034246,5]
[361815470,1747823526849,-1620.28,0.00034246,5]
[361815471,1747823526859,-2039.96,0.00034246,5]
[361815472,1747823526869,-659.87,0.00034246,5]
[361815473,1747823526881,-1650.39,0.00034246,5]
[361815474,1747823526891,-2331.07,0.00034246,5]
[361815475,1747823526901,-1130.47,0.00034246,5]
[361815476,1747823526913,-8529.77,0.00034246,5]
[361815477,1747823526923,-1170.52,0.00034246,5]
[361815478,1747823526933,-1019.14,0.00034246,5]
[361815479,1747823526943,-13852.49,0.00034246,5]
[361815480,1747823526954,-594.46,0.00034246,5]
[361815481,1747823526964,-420.0,0.00034246,5]
[361815482,1747823526974,-420.0,0.00034246,5]
[361815483,1747823526984,-528.88,0.00034246,5]
[361815484,1747823526994,-420.0,0.00034246,5]
[361815485,1747823527004,-729.81,0.00034246,5]
[361815486,1747823527013,-6448.31,0.00034246,5]
[361815487,1747823527023,-1260.39,0.00034246,5]
[361815488,1747823527032,-157.265004,0.00034246,5]
[361815489,1747823527042,-4031.81,0.00034246,5]
[361815490,1747823527052,-1826.19,0.00034246,5]
[361815491,1747823527063,-15980.3,0.00034246,2]
[361815492,1747823527073,-569.82,0.00034246,5]
[361815493,1747823527083,-1991.55,0.00034246,5]
[361815494,1747823527093,-420.0,0.00034246,5]
[361815495,1747823527103,-420.0,0.00034246,5]
[361815496,1747823527114,-711.84,0.00034246,5]
[361815497,1747823527123,-1316.77,0.00034246,5]
[361815498,1747823527133,-1559.3,0.00034246,5]
[361815499,1747823527143,-932.88,0.00034246,5]
[361815500,1747823527152,-1828.91,0.00034246,5]
[361815501,1747823527162,-1672.61,0.00034246,5]
[361815502,1747823527173,-420.0,0.00034246,5]
[361815503,1747823527183,-263.4969806,0.00034246,5]
[361815504,1747823527194,-6643.48,0.00034246,5]
[361815505,1747823527205,-420.0,0.00034246,5]
[361815506,1747823527219,-5987.12,0.00034246,5]
[361815507,1747823527230,-420.0,0.00034246,5]
[361815508,1747823527240,-4970.74,0.00034246,5]
[361815509,1747823527250,-420.0,0.00034246,5]
[361815510,1747823527259,-420.0,0.00034246,5]
[361815511,1747823527269,-908.99,0.00034246,5]
[361815512,1747823527278,-1754.62,0.00034246,5]
[361815513,1747823527287,-636.17,0.00034246,5]
[361815514,1747823527297,-907.69,0.00034246,5]
[361815515,1747823527307,-420.0,0.00034246,5]
[361815516,1747823527317,-434.27,0.00034246,5]
[361815517,1747823527327,-420.0,0.00034246,5]
[361815518,1747823527339,-14282.24,0.00034246,5]
[361815519,1747823527350,-420.0,0.00034246,5]
[361815520,1747823527361,-1727.02,0.00034246,5]
[361815521,1747823527378,-2354.7,0.00034246,5]
[361815522,1747823527388,-2934.17,0.00034246,5]
[361815523,1747823527398,-420.0,0.00034246,5]
[361815524,1747823527410,-2098.09,0.00034246,5]
[361815525,1747823527420,-2370.12,0.00034246,5]
[361815526,1747823527430,-1608.41,0.00034246,5]
[361815527,1747823527443,-635.77,0.00034246,5]
[361815528,1747823527459,-2448.57,0.00034246,5]
[361815529,1747823527469,-565.39,0.00034246,5]
[361815530,1747823527479,-420.0,0.00034246,5]
[361815531,1747823527489,-832.67,0.00034246,5]
[361815532,1747823527499,-2132.27,0.00034246,5]
[361815533,1747823527509,-420.0,0.00034246,5]
[361815534,1747823527519,-1444.81,0.00034246,5]
[361815535,1747823527529,-674.57,0.00034246,5]
[361815536,1747823527538,-1244.04,0.00034246,5]
[361815537,1747823527548,-14461.5,0.00034246,5]
[361815538,1747823527557,-4167.33,0.00034246,5]
[361815539,1747823527567,-5215.67,0.00034246,5]
[361815540,1747823527577,-888.13,0.00034246,5]
[361815541,1747823527586,-420.0,0.00034246,5]
[361815542,1747823527596,-207938.64,0.00034246,5]
[361815543,1747823527605,-548.09,0.00034246,5]
[361815544,1747823527614,-420.0,0.00034246,5]
[361815545,1747823527771,-420.0,0.00034246,5]
[361815546,1747823527781,-2319.06,0.00034246,5]
[361815547,1747823527792,-3257.11,0.00034246,5]
[361815548,1747823527804,-1507.21,0.00034246,5]
[361815549,1747823527813,-420.0,0.00034246,5]
[361815550,1747823527824,-1493.55,0.00034246,5]
[361815551,1747823527834,-1088.44,0.00034246,5]
[361815552,1747823527843,-2557.88,0.00034246,5]
[361815553,1747823527853,-697.67,0.00034246,5]
[361815554,1747823527863,-2873.2,0.00034246,5]
[361815555,1747823527873,-420.0,0.00034246,5]
[361815556,1747823527883,-420.0,0.00034246,5]
[361815557,1747823527893,-5582.21,0.00034246,5]
[361815558,1747823527902,-480.01,0.00034246,5]
[361815559,1747823527912,-2282.96,0.00034246,5]
[361815560,1747823527921,-1657.0,0.00034246,5]
[361815561,1747823527931,-252.41714443,0.00034246,5]
[361815562,1747823527941,-799.92,0.00034246,5]
[361815563,1747823527951,-18765.11,0.00034246,5]
[361815564,1747823527962,-1063.9,0.00034246,5]
[361815565,1747823527973,-420.0,0.00034246,5]
[361815566,1747823527983,-673.17,0.00034246,5]
[361815567,1747823527992,-420.0,0.00034246,5]
[361815568,1747823528002,-3847.23,0.00034246,5]
[361815569,1747823528013,-420.0,0.00034246,5]
[361815570,1747823528023,-549.05,0.00034246,5]
[361815571,1747823528033,-474.32,0.00034246,5]
[361815572,1747823528043,-2564.95,0.00034246,5]
[361815573,1747823528053,-420.0,0.00034246,5]
[361815574,1747823528062,-358.48329412,0.00034246,5]
[361815575,1747823528073,-1818.07,0.00034246,5]
[361815576,1747823528082,-42262.48,0.00034246,5]
[361815577,1747823528093,-420.0,0.00034246,5]
[361815578,1747823528103,-1719.68,0.00034246,5]
[361815579,1747823528112,-516.93,0.00034246,5]
[361815580,1747823528123,-4510.74,0.00034246,5]
[361815581,1747823528133,-3137.08,0.00034246,5]
[361815582,1747823528143,-506.82,0.00034246,5]
[361815583,1747823528154,-9532.22,0.00034246,5]
[361815584,1747823528164,-420.0,0.00034246,5]
[361815585,1747823528174,-1001.23,0.00034246,5]
[361815586,1747823528184,-1349.86,0.00034246,5]
[361815587,1747823528194,-420.0,0.00034246,5]
[361815588,1747823528204,-1554.78,0.00034246,5]
[361815589,1747823528214,-874.84,0.00034246,5]
[361815590,1747823528224,-2359.68,0.00034246,5]
[361815591,1747823528234,-627.61,0.00034246,5]
[361815592,1747823528244,-670.93,0.00034246,5]
[361815593,1747823528253,-420.0,0.00034246,5]
[361815594,1747823528263,-1909.1,0.00034246,5]
[361815595,1747823528272,-3667.82,0.00034246,5]
[361815596,1747823528282,-3774.82,0.00034246,5]
[361815597,1747823528292,-713.73,0.00034246,5]
[361815598,1747823528302,-420.0,0.00034246,5]
[361815599,1747823528311,-1201.04,0.00034246,5]
[361815600,1747823528322,-420.0,0.00034246,5]
[361815601,1747823528334,-566.48515977,0.00034268,5]
[361815602,1747823528345,-1570.67,0.00034339,12]
[361815603,1747823528355,-1223.209,0.00034351,38]
[361815604,1747823528366,-500.0,0.00034379,7]
[361815605,1747823528377,-610.41,0.00034385,2]
[361815606,1747823528387,-1000.0,0.00034446,2]
[361815607,1747823528397,-61098.54,0.000345,14]
[361815608,1747823528406,-420.0,0.0003452,5]
[361815609,1747823528417,-420.0,0.0003452,5]
[361815610,1747823528427,-420.0,0.0003452,5]
[361815611,1747823528436,-420.0,0.0003452,5]
[361815612,1747823528447,-420.0,0.0003452,5]
[361815613,1747823528459,-420.0,0.0003452,5]
[361815614,1747823528468,-420.0,0.0003452,5]
[361815615,1747823528478,-420.0,0.0003452,5]
[361815616,1747823528488,-868.63,0.0003452,5]
[361815617,1747823528497,-420.0,0.0003452,5]
[361815618,1747823528507,-771.73,0.0003452,5]
[361815619,1747823528516,-1206.97,0.0003452,5]
[361815620,1747823528526,-420.0,0.0003452,5]
[361815621,1747823528536,-420.0,0.0003452,5]
[361815622,1747823528547,-1764.15,0.0003452,5]
[361815623,1747823528557,-550.16,0.0003452,5]
[361815624,1747823528566,-497.1,0.0003452,5]
[361815625,1747823528575,-420.0,0.0003452,5]
[361815626,1747823528586,-420.0,0.0003452,5]
[361815627,1747823528595,-420.0,0.0003452,5]
[361815628,1747823528605,-965.56,0.0003452,5]
[361815629,1747823528615,-562.65,0.0003452,5]
[361815630,1747823528626,-616.51,0.0003452,5]
[361815631,1747823528636,-420.0,0.0003452,5]
[361815632,1747823528646,-420.0,0.0003452,5]
[361815633,1747823528656,-611.48,0.0003452,5]
[361815634,1747823528665,-420.0,0.0003452,5]
[361815635,1747823528676,-420.0,0.0003452,5]
[361815636,1747823528686,-420.0,0.0003452,5]
[361815637,1747823528697,-420.0,0.0003452,5]
[361815638,1747823528707,-499.33,0.0003452,5]
[361815639,1747823528718,-506.54,0.0003452,5]
[361815640,1747823528727,-554.52694599,0.0003452,5]
[361815641,1747823528737,-911.46,0.0003452,5]
[361815642,1747823528747,-1153.75,0.0003452,5]
[361815643,1747823528757,-420.0,0.0003452,5]
[361815644,1747823528767,-420.0,0.0003452,5]
[361815645,1747823528776,-420.0,0.0003452,5]
[361815646,1747823528786,-420.0,0.0003452,5]
[361815647,1747823528796,-730.43,0.0003452,5]
[361815648,1747823528806,-420.0,0.0003452,5]
[361815649,1747823528815,-420.0,0.0003452,5]
[361815650,1747823528825,-420.0,0.0003452,5]
[361815651,1747823528835,-1697.54,0.0003452,5]
[361815652,1747823528844,-579.77,0.0003452,5]
[361815653,1747823528854,-420.0,0.0003452,5]
[361815654,1747823528863,-420.0,0.0003452,5]
[361815655,1747823528873,-420.0,0.0003452,5]
[361815656,1747823528882,-420.0,0.0003452,5]
[361815657,1747823528892,-570.61,0.0003452,5]
[361815658,1747823528902,-420.0,0.0003452,5]
[361815659,1747823528911,-420.0,0.0003452,5]
[361815660,1747823528921,-788.01,0.0003452,5]
[361815661,1747823528931,-420.0,0.0003452,5]
[361815662,1747823528941,-1490.72,0.0003452,5]
[361815663,1747823528951,-420.0,0.0003452,5]
[361815664,1747823528960,-917.84,0.0003452,5]
[361815665,1747823528970,-642.67,0.0003452,5]
[361815666,1747823528980,-420.0,0.0003452,5]
[361815667,1747823528991,-807.74,0.0003452,5]
[361815668,1747823529000,-901.58,0.0003452,5]
[361815669,1747823529010,-420.0,0.0003452,5]
[361815670,1747823529020,-3015.53,0.0003452,5]
[361815671,1747823529030,-420.0,0.0003452,5]
[361815672,1747823529040,-420.0,0.0003452,5]
[361815673,1747823529050,-460.17,0.0003452,5]
[361815674,1747823529060,-642.11,0.0003452,5]
[361815675,1747823529069,-420.0,0.0003452,5]
[361815676,1747823529079,-1185.77,0.0003452,5]
[361815677,1747823529089,-973.19,0.0003452,5]
[361815678,1747823529098,-497.57,0.0003452,5]
[361815679,1747823529108,-420.0,0.0003452,5]
[361815680,1747823529118,-1098.15,0.0003452,5]
[361815681,1747823529127,-420.0,0.0003452,5]
[361815682,1747823529136,-685.16,0.0003452,5]
[361815683,1747823529146,-420.0,0.0003452,5]
[361815684,1747823529155,-420.0,0.0003452,5]
[361815685,1747823529165,-1485.21,0.0003452,5]
[361815686,1747823529174,-448.34,0.0003452,5]
[361815687,1747823529184,-818.23,0.0003452,5]
[361815688,1747823529194,-443.81,0.0003452,5]
[361815689,1747823529204,-1526.88,0.0003452,5]
[361815690,1747823529213,-420.0,0.0003452,5]
[361815691,1747823529223,-420.0,0.0003452,5]
[361815692,1747823529232,-470.16,0.0003452,5]
[361815693,1747823529241,-443.58,0.0003452,5]
[361815694,1747823529251,-669.64,0.0003452,5]
[361815695,1747823529261,-420.0,0.0003452,5]
[361815696,1747823529270,-420.0,0.0003452,5]
[361815697,1747823529280,-420.0,0.0003452,5]
[361815698,1747823529289,-937.45,0.0003452,5]
[361815699,1747823529300,-2266.87,0.0003452,5]
[361815700,1747823529311,-420.0,0.0003452,5]
[361815701,1747823529322,-442.68,0.0003452,5]
[361815702,1747823529332,-420.0,0.0003452,5]
[361815703,1747823529341,-420.0,0.0003452,5]
[361815704,1747823529351,-420.0,0.0003452,5]
[361815705,1747823529360,-655.53,0.0003452,5]
[361815706,1747823529374,-597.09,0.0003452,5]
[361815707,1747823529384,-420.0,0.0003452,5]
[361815708,1747823529394,-636.42,0.0003452,5]
[361815709,1747823529404,-420.0,0.0003452,5]
[361815710,1747823529415,-555.0803949,0.0003452,5]
[361815711,1747823529424,-420.0,0.0003452,5]
[361815712,1747823529435,-838.78,0.0003452,5]
[361815713,1747823529444,-420.0,0.0003452,5]
[361815714,1747823529454,-493.93,0.0003452,5]
[361815715,1747823529464,-420.0,0.0003452,5]
[361815716,1747823529473,-420.0,0.0003452,5]
[361815717,1747823529483,-560.23,0.0003452,5]
[361815718,1747823529493,-420.0,0.0003452,5]
[361815719,1747823529502,-1078.18,0.0003452,5]
[361815720,1747823529511,-420.0,0.0003452,5]
[361815721,1747823529521,-420.0,0.0003452,5]
[361815722,1747823529530,-2322.3,0.0003452,5]
[361815723,1747823529540,-420.0,0.0003452,5]
[361815724,1747823529549,-420.0,0.0003452,5]
[361815725,1747823529559,-1065.69,0.0003452,5]
[361815726,1747823529570,-420.0,0.0003452,5]
[361815727,1747823529579,-1253.93,0.0003452,5]
[361815728,1747823529589,-1274.75,0.0003452,5]
[361815729,1747823529599,-463.91,0.0003452,5]
[361815730,1747823529609,-721.97,0.0003452,5]
[361815731,1747823529619,-420.0,0.0003452,5]
[361815732,1747823529629,-821.62,0.0003452,5]
[361815733,1747823529639,-420.0,0.0003452,5]
[361815734,1747823529649,-422.38,0.0003452,5]
[361815735,1747823529658,-1544.61,0.0003452,5]
[361815736,1747823529668,-550.85,0.0003452,5]
[361815737,1747823529678,-420.0,0.0003452,5]
[361815738,1747823529687,-420.0,0.0003452,5]
[361815739,1747823529698,-529.38881114,0.0003452,5]
[361815740,1747823529708,-499.46,0.0003452,5]
[361815741,1747823529718,-420.0,0.0003452,5]
[361815742,1747823529727,-678.04,0.0003452,5]
[361815743,1747823529737,-616.6,0.0003452,5]
[361815744,1747823529746,-1170.85,0.0003452,5]
[361815745,1747823529756,-546.75,0.0003452,5]
[361815746,1747823529766,-420.0,0.0003452,5]
[361815747,1747823529776,-420.0,0.0003452,5]
[361815748,1747823529786,-420.0,0.0003452,5]
[361815749,1747823529796,-1581.01,0.0003452,5]
[361815750,1747823529806,-420.0,0.0003452,5]
[361815751,1747823529816,-2020.82,0.0003452,5]
[361815752,1747823529826,-1587.36,0.0003452,5]
[361815753,1747823529837,-440.31,0.0003452,5]
[361815754,1747823529846,-528.73,0.0003452,5]
[361815755,1747823529856,-420.0,0.0003452,5]
[361815756,1747823529866,-530.24,0.0003452,5]
[361815757,1747823529876,-835.65,0.0003452,5]
[361815758,1747823529885,-420.0,0.0003452,5]
[361815759,1747823529895,-632.49,0.0003452,5]
[361815760,1747823529905,-420.0,0.0003452,5]
[361815761,1747823529915,-712.53,0.0003452,5]
[361815762,1747823529926,-420.0,0.0003452,5]
[361815763,1747823529936,-420.0,0.0003452,5]
[361815764,1747823529945,-905.81,0.0003452,5]
[361815765,1747823529956,-420.0,0.0003452,5]
[361815766,1747823529966,-1500.35,0.0003452,5]
[361815767,1747823529976,-913.23,0.0003452,5]
[361815768,1747823529985,-420.0,0.0003452,5]
[361815769,1747823529995,-891.23,0.0003452,5]
[361815770,1747823530005,-420.0,0.0003452,5]
[361815771,1747823530017,-420.0,0.0003452,5]
[361815772,1747823530026,-420.0,0.0003452,5]
[361815773,1747823530035,-420.0,0.0003452,5]
[361815774,1747823530045,-793.59,0.0003452,5]
[361815775,1747823530054,-420.0,0.0003452,5]
[361815776,1747823530063,-532.78,0.0003452,5]
[361815777,1747823530398,-410.97596415,0.0003452,5]
[361815778,1747823530467,-420.0,0.0003452,5]
[361815779,1747823530477,-420.0,0.0003452,5]
[361815780,1747823530486,-716.67,0.0003452,5]
[361815781,1747823530496,-431.22,0.0003452,5]
[361815782,1747823530506,-3321.89,0.0003452,5]
[361815783,1747823530516,-655.87,0.0003452,5]
[361815784,1747823530525,-420.0,0.0003452,5]
[361815785,1747823530535,-420.0,0.0003452,5]
[361815786,1747823530545,-464.92,0.0003452,5]
[361815787,1747823530554,-420.0,0.0003452,5]
[361815788,1747823530565,-752.46,0.0003452,5]
[361815789,1747823530575,-420.0,0.0003452,5]
[361815790,1747823530585,-420.0,0.0003452,5]
[361815791,1747823530595,-1164.32,0.0003452,5]
[361815792,1747823530605,-447.46,0.0003452,5]
[361815793,1747823530614,-420.0,0.0003452,5]
[361815794,1747823530624,-420.0,0.0003452,5]
[361815795,1747823530634,-1182.51,0.0003452,5]
[361815796,1747823530643,-970.46,0.0003452,5]
[361815797,1747823530653,-2566.8,0.0003452,3]
[361815798,1747823530663,-420.0,0.0003452,5]
[361815799,1747823530673,-986.1,0.0003452,5]
[361815800,1747823530683,-3544.76,0.0003452,5]
[361815801,1747823530693,-528.46,0.0003452,5]
[361815802,1747823530703,-420.0,0.0003452,5]
[361815803,1747823530713,-420.0,0.0003452,5]
[361815804,1747823530723,-420.0,0.0003452,5]
[361815805,1747823530733,-1116.24,0.0003452,5]
[361815806,1747823530744,-607.2,0.0003452,5]
[361815807,1747823530754,-498.41,0.0003452,5]
[361815808,1747823530764,-511.54,0.0003452,5]
[361815809,1747823530774,-420.0,0.0003452,5]
[361815810,1747823530784,-1446.26,0.0003452,5]
[361815811,1747823530794,-420.0,0.0003452,5]
[361815812,1747823530804,-635.53,0.0003452,5]
[361815813,1747823530816,-420.0,0.0003452,5]
[361815814,1747823530826,-420.0,0.0003452,5]
[361815815,1747823530838,-420.0,0.0003452,5]
[361815816,1747823530849,-420.0,0.0003452,5]
[361815817,1747823530859,-602.05,0.0003452,5]
[361815818,1747823530870,-420.0,0.0003452,5]
[361815819,1747823530880,-3171.93,0.0003452,5]
[361815820,1747823530890,-420.0,0.0003452,5]
[361815821,1747823530901,-420.0,0.0003452,5]
[361815822,1747823530911,-672.06,0.0003452,5]
[361815823,1747823530920,-1136.92,0.0003452,5]
[361815824,1747823530931,-501.87,0.0003452,5]
[361815825,1747823530941,-420.0,0.0003452,5]
[361815826,1747823530951,-960.17,0.0003452,5]
[361815827,1747823530961,-420.0,0.0003452,5]
[361815828,1747823530971,-1498.01,0.0003452,5]
[361815829,1747823530981,-420.0,0.0003452,5]
[361815830,1747823530991,-420.0,0.0003452,5]
[361815831,1747823531000,-420.0,0.0003452,5]
[361815832,1747823531010,-489.93,0.0003452,5]
[361815833,1747823531019,-422.85132925,0.0003452,5]
[361815834,1747823531029,-420.0,0.0003452,5]
[361815835,1747823531040,-420.0,0.0003452,5]
[361815836,1747823531050,-420.0,0.0003452,5]
[361815837,1747823531061,-1181.55,0.0003452,5]
[361815838,1747823531071,-420.0,0.0003452,5]
[361815839,1747823531081,-1634.56,0.0003452,5]
[361815840,1747823531091,-420.0,0.0003452,5]
[361815841,1747823531101,-420.0,0.0003452,5]
[361815842,1747823531111,-420.0,0.0003452,5]
[361815843,1747823531120,-731.06,0.0003452,5]
[361815844,1747823531130,-665.75,0.0003452,5]
[361815845,1747823531140,-420.0,0.0003452,5]
[361815846,1747823531150,-420.0,0.0003452,5]
[361815847,1747823531161,-420.0,0.0003452,5]
[361815848,1747823531171,-1010.87,0.0003452,5]
[361815849,1747823531181,-725.49,0.0003452,5]
[361815850,1747823531191,-1218.91,0.0003452,5]
[361815851,1747823531200,-1168.31,0.0003452,5]
[361815852,1747823531211,-1264.38,0.0003452,5]
[361815853,1747823531220,-420.0,0.0003452,5]
[361815854,1747823531232,-420.0,0.0003452,2]
[361815855,1747823531241,-584.07,0.0003452,5]
[361815856,1747823531252,-3033.08,0.0003452,5]
[361815857,1747823531262,-420.0,0.0003452,5]
[361815858,1747823531272,-420.0,0.0003452,5]
[361815859,1747823531282,-740.34,0.0003452,5]
[361815860,1747823531292,-420.0,0.0003452,5]
[361815861,1747823531301,-420.0,0.0003452,5]
[361815862,1747823531311,-420.0,0.0003452,5]
[361815863,1747823531322,-1236.73,0.0003452,5]
[361815864,1747823531332,-420.0,0.0003452,5]
[361815865,1747823531341,-718.57,0.0003452,5]
[361815866,1747823531352,-420.0,0.0003452,2]
[361815867,1747823531362,-2646.97,0.0003452,5]
[361815868,1747823531376,-420.0,0.0003452,5]
[361815869,1747823531386,-385.48387774,0.0003452,5]
[361815870,1747823531396,-420.0,0.0003452,5]
[361815871,1747823531406,-3655.51,0.0003452,5]
[361815872,1747823531416,-420.0,0.0003452,5]
[361815873,1747823531426,-1194.67,0.0003452,5]